bitfinex-derivatives/quotes_BTCF0:USTF0_20250309
["timestamp","ask_amount","ask_price","bid_price","bid_amount"]
[1741513636186,0.5005165,85832.0,85831.0,0.001]
[1741513636881,0.0689173,85831.0,85830.0,4e-05]
[1741513637289,0.13876718,85831.0,85830.0,0.00012]
[1741513639296,0.13876718,85831.0,85824.0,4e-05]
[1741513639297,0.0699222,85825.0,85824.0,4e-05]
[1741513639495,0.5059622,85825.0,85824.0,4e-05]
[1741513639788,0.52185973,85825.0,85824.0,4e-05]
[1741513640290,0.069923,85824.0,85823.0,0.00011692]
[1741513640492,0.069923,85824.0,85823.0,0.00015692]
[1741513640696,0.13757288,85824.0,85823.0,0.00015692]
[1741513641094,0.1049036,85810.0,85809.0,0.0699304]
[1741513641295,0.1805836,85810.0,85809.0,0.0699304]
[1741513641593,0.19231667,85810.0,85809.0,0.139861]
[1741513641794,0.19656655,85810.0,85809.0,0.139861]
[1741513641985,0.25996655,85810.0,85809.0,0.139861]
[1741513642185,0.25996655,85810.0,85809.0,0.0699304]
[1741513642387,0.25996655,85810.0,85805.0,0.20940846]
[1741513642388,0.0699361,85808.0,85805.0,0.20940846]
[1741513642585,0.0699377,85806.0,85805.0,0.27934606]
[1741513642785,0.0699377,85806.0,85805.0,0.0699376]
[1741513642992,0.1325377,85806.0,85805.0,0.0699376]
[1741513643191,0.1325377,85806.0,85805.0,0.0700176]
[1741513643387,0.13678758,85806.0,85805.0,0.0700176]
[1741513646996,0.06684988,85806.0,85805.0,0.0700176]
[1741513647292,0.06684988,85806.0,85805.0,0.10645951]
[1741513647797,0.13678758,85806.0,85805.0,0.10645951]
[1741513648991,0.03554988,85806.0,85805.0,0.10645951]
[1741513649897,0.03554988,85806.0,85805.0,0.10649951]
[1741513650401,0.03554988,85806.0,85805.0,0.10657951]
[1741513652490,0.03554988,85806.0,85805.0,0.07867951]
[1741513652693,0.03554988,85806.0,85805.0,0.10657951]
[1741513653294,0.03554988,85806.0,85805.0,0.10637951]
[1741513653894,0.10548758,85806.0,85805.0,0.10637951]
[1741513654095,0.13618758,85806.0,85805.0,0.07847951]
[1741513655397,0.13618758,85806.0,85805.0,0.00854191]
[1741513655592,0.1049081,85805.0,85804.0,4e-05]
[1741513655798,0.2443881,85805.0,85804.0,4e-05]
[1741513656293,0.0699402,85803.0,85802.0,0.3608]
[1741513656893,0.07419008,85803.0,85802.0,0.3608]
[1741513657099,0.08135609,85803.0,85802.0,0.3608]
[1741513658302,0.08135609,85803.0,85802.0,0.36088]
[1741513659199,0.08135609,85803.0,85802.0,0.3608]
[1741513662105,0.07419008,85803.0,85802.0,0.3608]
[1741513662307,0.069941,85802.0,85801.0,4e-05]
[1741513662609,0.13889088,85802.0,85801.0,4e-05]
[1741513667413,0.0699418,85801.0,85800.0,0.1]
[1741513667607,0.0699418,85801.0,85800.0,0.10004]
[1741513667807,0.13659168,85801.0,85800.0,0.10004]
[1741513668209,0.13659168,85801.0,85800.0,0.10012]
[1741513671517,0.19328815,85801.0,85800.0,0.10012]
[1741513671713,0.55408815,85801.0,85800.0,0.10012]
[1741513677506,0.63060815,85801.0,85800.0,0.10012]
[1741513678311,0.63060815,85801.0,85800.0,0.07698037]
[1741513681017,0.63070184,85801.0,85800.0,0.07698037]
[1741513683214,0.63070184,85801.0,85800.0,0.07686037]
[1741513684219,0.63070184,85801.0,85800.0,0.07690037]
[1741513684415,0.63070184,85801.0,85800.0,0.23764297]
[1741513684627,0.63078184,85801.0,85800.0,0.23764297]
[1741513684924,0.84006292,85801.0,85800.0,0.23764297]
[1741513685225,0.83581304,85801.0,85800.0,0.23768297]
[1741513685521,0.83581304,85801.0,85800.0,0.16774037]
[1741513686225,0.83581304,85801.0,85800.0,0.23776297]
[1741513686422,0.47501304,85801.0,85800.0,0.23776297]
[1741513687218,0.44411304,85801.0,85800.0,0.23780297]
[1741513688221,0.44411304,85801.0,85800.0,0.23788297]
[1741513688727,0.23483196,85801.0,85800.0,0.23788297]
[1741513691526,0.23483196,85801.0,85800.0,0.03522405]
[1741513692227,0.26753196,85801.0,85800.0,0.03494405]
[1741513693029,0.62833196,85801.0,85800.0,0.03494405]
[1741513693328,0.62833196,85801.0,85800.0,0.03502405]
[1741513694630,0.62833196,85801.0,85800.0,0.06572405]
[1741513695228,0.62833196,85801.0,85800.0,0.03502405]
[1741513696420,0.89698364,85801.0,85800.0,0.06572405]
[1741513697033,0.89698364,85801.0,85800.0,0.03502405]
[1741513697832,0.53618364,85801.0,85800.0,0.03502405]
[1741513698137,0.89698364,85801.0,85800.0,0.03502405]
[1741513699329,0.89698364,85801.0,85800.0,0.06672405]
[1741513699628,0.89698364,85801.0,85800.0,0.03502405]
[1741513699629,0.75264749,85801.0,85800.0,0.03502405]
[1741513701434,0.75264749,85801.0,85800.0,0.03494405]
[1741513702229,0.75264749,85801.0,85800.0,0.03502405]
[1741513702429,0.75264749,85801.0,85800.0,0.06812405]
[1741513702628,0.75683024,85801.0,85800.0,0.06812405]
[1741513703029,0.75683024,85801.0,85800.0,0.03502405]
[1741513703235,0.75264749,85801.0,85800.0,0.03502405]
[1741513704730,0.67584749,85801.0,85800.0,0.09742405]
[1741513704931,0.75276749,85801.0,85800.0,0.09742405]
[1741513705331,0.75276749,85801.0,85800.0,0.03506405]
[1741513706332,0.75276749,85801.0,85800.0,0.03514405]
[1741513706536,0.95804749,85801.0,85800.0,0.03514405]
[1741513709136,0.95804749,85801.0,85800.0,0.06684405]
[1741513711448,1.10137701,85801.0,85800.0,0.06684405]
[1741513711648,1.10137701,85801.0,85800.0,0.03514405]
[1741513717549,0.74057701,85801.0,85800.0,0.03514405]
[1741513717743,1.10137701,85801.0,85800.0,0.03514405]
[1741513719356,1.10137701,85801.0,85800.0,0.03494405]
[1741513720148,0.95804749,85801.0,85800.0,0.03494405]
[1741513720348,0.95804749,85801.0,85800.0,0.03502405]
[1741513725464,0.95804749,85801.0,85799.0,8e-05]
[1741513725465,0.88810569,85801.0,85776.0,0.069962]
[1741513725763,0.0699605,85778.0,85777.0,0.1003614]
[1741513725959,0.1466005,85778.0,85777.0,0.1003614]
[1741513726563,0.15083199,85778.0,85777.0,0.1003614]
[1741513727259,0.08087149,85778.0,85777.0,0.1003614]
[1741513727761,0.15083199,85778.0,85777.0,0.1003614]
[1741513727961,0.18083199,85778.0,85777.0,0.1003614]
[1741513728353,0.18083199,85778.0,85777.0,0.1004414]
[1741513728866,0.11087149,85778.0,85777.0,0.1323414]
[1741513729768,0.19222755,85778.0,85777.0,0.1323414]
[1741513729973,0.18083199,85778.0,85777.0,0.1323414]
[1741513730361,0.11087149,85778.0,85777.0,0.1323414]
[1741513730859,0.18083199,85778.0,85777.0,0.1323414]
[1741513732267,0.41237534,85778.0,85777.0,0.1323414]
[1741513734075,0.41209534,85778.0,85777.0,0.1323414]
[1741513735374,0.41209534,85778.0,85777.0,0.4931414]
[1741513735681,0.18055199,85778.0,85777.0,0.4931414]
[1741513736377,0.18055199,85778.0,85777.0,0.1323414]
[1741513736681,0.18047199,85778.0,85777.0,0.1323414]
[1741513738175,0.10419199,85778.0,85777.0,0.1323414]
[1741513738377,0.18043199,85778.0,85777.0,0.1323414]
[1741513739382,0.18039199,85778.0,85777.0,0.1323414]
[1741513739579,0.18111862,85778.0,85777.0,0.1323414]
[1741513740179,0.10491862,85778.0,85777.0,0.1323414]
[1741513740378,0.18111862,85778.0,85777.0,0.1323414]
[1741513740871,0.21341862,85778.0,85777.0,0.1323414]
[1741513741081,0.06725812,85778.0,85777.0,0.1323414]
[1741513741274,0.14341812,85778.0,85777.0,0.1323414]
[1741513741769,0.03495812,85778.0,85777.0,0.1323414]
[1741513741971,0.00495812,85778.0,85777.0,0.2823414]
[1741513742471,0.00072663,85778.0,85777.0,0.2823414]
[1741513743376,0.00072663,85778.0,85777.0,0.2824214]
[1741513746771,0.10554906,85778.0,85777.0,0.2824214]
[1741513746967,0.10554906,85778.0,85777.0,0.1324214]
[1741513747181,0.10482243,85778.0,85777.0,0.1324214]
[1741513748668,0.10908989,85778.0,85777.0,0.1324214]
[1741513749281,0.14048989,85778.0,85777.0,0.1324214]
[1741513750072,0.14048989,85778.0,85777.0,0.1005214]
[1741513750269,0.28729039,85778.0,85777.0,0.1005214]
[1741513750575,0.21732989,85778.0,85777.0,0.1003614]
[1741513751283,0.21732989,85778.0,85777.0,0.4612414]
[1741513751779,0.11250746,85778.0,85777.0,0.4612414]
[1741513755687,0.14320746,85778.0,85777.0,0.4612414]
[1741513756382,0.03566746,85778.0,85777.0,0.1005214]
[1741513756690,0.03566746,85778.0,85777.0,0.4613214]
[1741513757087,0.03566746,85778.0,85777.0,0.1005214]
[1741513757289,0.03566746,85778.0,85777.0,0.4613614]
[1741513757491,0.0314,85778.0,85777.0,0.4613614]
[1741513758281,0.0314,85778.0,85777.0,0.4614414]
[1741513758689,0.03557943,85778.0,85777.0,0.4614414]
[1741513759991,0.0314,85778.0,85777.0,0.4614414]
[1741513763497,0.1084,85778.0,85777.0,0.4614414]
[1741513764296,0.21321558,85778.0,85777.0,0.4614414]
[1741513764691,0.21321558,85778.0,85777.0,0.1006414]
[1741513765091,0.21321558,85778.0,85777.0,0.4614414]
[1741513765396,0.21317558,85778.0,85777.0,0.4614414]
[1741513766288,0.21313558,85778.0,85777.0,0.4614414]
[1741513766691,0.21313558,85778.0,85777.0,0.1006414]
[1741513766892,0.21313558,85778.0,85777.0,0.4614414]
[1741513767299,0.21309558,85778.0,85777.0,0.4614414]
[1741513768098,0.10824,85778.0,85777.0,0.4614414]
[1741513768397,0.1082,85778.0,85777.0,0.4614414]
[1741513768995,0.0314,85778.0,85777.0,0.4614414]
[1741513769598,0.10816,85778.0,85777.0,0.4614414]
[1741513769794,0.10816,85778.0,85777.0,0.1006414]
[1741513769996,0.10816,85778.0,85777.0,0.4614414]
[1741513770190,0.0314,85778.0,85777.0,0.4614414]
[1741513770390,0.1082,85778.0,85777.0,0.4614414]
[1741513770590,0.0314,85778.0,85777.0,0.4310414]
[1741513770898,0.11244105,85778.0,85777.0,0.4310414]
[1741513771295,0.03564105,85778.0,85777.0,0.4307614]
[1741513771500,0.11244105,85778.0,85777.0,0.4608614]
[1741513772003,0.14334105,85778.0,85777.0,0.4608614]
[1741513772195,0.14334105,85778.0,85777.0,0.4609414]
[1741513772397,0.06654105,85778.0,85777.0,0.4609414]
[1741513772700,0.14330105,85778.0,85777.0,0.4609414]
[1741513773199,0.06654105,85778.0,85777.0,0.4609414]
[1741513773702,0.14334105,85778.0,85777.0,0.4609414]
[1741513775406,0.14330105,85778.0,85777.0,0.4609414]
[1741513775701,0.06654105,85778.0,85777.0,0.4609414]
[1741513776001,0.14326105,85778.0,85777.0,0.4609414]
[1741513776197,0.06654105,85778.0,85777.0,0.4609414]
[1741513776397,0.14326105,85778.0,85777.0,0.4609414]
[1741513776803,0.06654105,85778.0,85777.0,0.4609414]
[1741513776998,0.14330105,85778.0,85777.0,0.4609414]
[1741513777300,0.06654105,85778.0,85777.0,0.4609414]
[1741513777800,0.14326105,85778.0,85777.0,0.4609414]
[1741513779602,0.06654105,85778.0,85777.0,0.4609414]
[1741513779793,0.14322105,85778.0,85777.0,0.4609414]
[1741513780597,0.06654105,85778.0,85777.0,0.4609414]
[1741513780796,0.14318105,85778.0,85777.0,0.4609414]
[1741513781196,0.06654105,85778.0,85777.0,0.4308414]
[1741513781406,0.14318105,85778.0,85777.0,0.4618414]
[1741513782001,0.06654105,85778.0,85777.0,0.4308414]
[1741513782499,0.14314105,85778.0,85777.0,0.4308414]
[1741513783109,0.06654105,85778.0,85777.0,0.4308414]
[1741513783499,0.14318105,85778.0,85777.0,0.4308414]
[1741513784003,0.06654105,85778.0,85777.0,0.4308414]
[1741513784203,0.14314105,85778.0,85777.0,0.4307614]
[1741513784508,0.21310155,85778.0,85777.0,0.4307614]
[1741513784999,0.13650155,85778.0,85777.0,0.4307614]
[1741513785199,0.13650155,85778.0,85777.0,0.4308414]
[1741513785705,0.21306155,85778.0,85777.0,0.4308414]
[1741513786408,0.13650155,85778.0,85777.0,0.4308414]
[1741513786602,0.21302155,85778.0,85777.0,0.4308414]
[1741513787203,0.14306105,85778.0,85777.0,0.4308414]
[1741513792907,0.14294105,85778.0,85777.0,0.4637414]
[1741513793105,0.06654105,85778.0,85777.0,0.4637414]
[1741513793310,0.06654105,85778.0,85777.0,0.4637814]
[1741513793311,0.14294105,85778.0,85777.0,0.4637814]
[1741513793512,0.06654105,85778.0,85777.0,0.4637814]
[1741513793806,0.14298105,85778.0,85777.0,0.4637814]
[1741513794008,0.13874,85778.0,85777.0,0.4637814]
[1741513794211,0.0623,85778.0,85777.0,0.4638614]
[1741513794412,0.1387,85778.0,85777.0,0.4638614]
[1741513795208,0.0623,85778.0,85777.0,0.4638614]
[1741513795812,0.13866,85778.0,85777.0,0.4638614]
[1741513796014,0.13866,85778.0,85777.0,0.1030614]
[1741513796219,0.0623,85778.0,85777.0,0.1030614]
[1741513796510,0.13866,85778.0,85777.0,0.1030614]
[1741513796710,0.13862,85778.0,85777.0,0.1030614]
[1741513797505,0.14280471,85778.0,85777.0,0.1030614]
[1741513797707,0.06648471,85778.0,85777.0,0.1030614]
[1741513800007,0.13644521,85778.0,85777.0,0.0701614]
[1741513800510,0.21284521,85778.0,85777.0,0.0701614]
[1741513800809,0.21284521,85778.0,85777.0,0.0699614]
[1741513801312,0.21284521,85778.0,85777.0,0.0700414]
[1741513801708,0.14288471,85778.0,85777.0,0.0700414]
[1741513801906,0.21284521,85778.0,85777.0,0.1003414]
[1741513802208,0.06648471,85778.0,85777.0,0.1003414]
[1741513802409,0.17484688,85783.0,85777.0,0.3965214]
[1741513802599,0.00174904,85800.0,85788.0,0.0699524]
[1741513803315,0.0699461,85796.0,85788.0,0.1309924]
[1741513803503,0.0699461,85796.0,85788.0,0.142552]
[1741513804009,0.20990615,85792.0,85791.0,0.0699499]
[1741513804606,0.20990615,85792.0,85791.0,0.1026499]
[1741513805411,0.27985525,85792.0,85791.0,0.0699499]
[1741513806311,0.27985525,85792.0,85791.0,0.1026499]
[1741513806511,0.34545525,85792.0,85791.0,0.1026499]
[1741513807312,0.34545525,85792.0,85791.0,0.1027299]
[1741513807814,0.1355491,85792.0,85791.0,0.1027299]
[1741513808407,0.1355491,85792.0,85791.0,0.0700299]
[1741513809716,0.2120691,85792.0,85791.0,0.0700299]
[1741513809911,0.2120691,85792.0,85791.0,0.0699499]
[1741513810313,0.2120691,85792.0,85791.0,0.0700299]
[1741513814106,0.2120691,85792.0,85791.0,8e-05]
[1741513814419,0.069954,85786.0,85785.0,4e-05]
[1741513814606,0.146434,85786.0,85785.0,4e-05]
[1741513814913,0.15081281,85786.0,85785.0,4e-05]
[1741513815313,0.21461281,85786.0,85785.0,0.0699548]
[1741513815709,0.24601281,85786.0,85785.0,0.0699548]
[1741513816211,0.24601281,85786.0,85785.0,0.0700348]
[1741513817416,0.24601281,85786.0,85785.0,8e-05]
[1741513817917,0.24601281,85786.0,85785.0,0.0700348]
[1741513818517,0.24601281,85786.0,85785.0,0.0699548]
[1741513818917,0.17605881,85786.0,85784.0,4e-05]
[1741513819110,0.0699548,85785.0,85784.0,4e-05]
[1741513819511,0.1343548,85785.0,85784.0,0.0699957]
[1741513819813,0.14581594,85785.0,85784.0,0.0699957]
[1741513821814,0.14581594,85785.0,85784.0,4e-05]
[1741513822728,0.15724034,85785.0,85784.0,0.0699957]
[1741513823116,0.15724034,85785.0,85784.0,0.04374571]
[1741513823323,0.15724034,85785.0,85784.0,0.07584571]
[1741513823324,0.21394226,85785.0,85784.0,0.07584571]
[1741513825022,0.20685993,85785.0,85784.0,0.07584571]
[1741513826819,0.16233553,85785.0,85784.0,0.07584571]
[1741513827130,0.23917553,85785.0,85784.0,0.13674571]
[1741513827419,0.23917553,85785.0,85784.0,0.13678571]
[1741513828222,0.23917553,85785.0,85784.0,0.13686571]
[1741513829511,0.23917553,85785.0,85784.0,0.07596571]
[1741513830221,0.23917553,85785.0,85784.0,0.07584571]
[1741513831227,0.23917553,85785.0,85784.0,0.07592571]
[1741513831719,0.23917553,85785.0,85784.0,0.10682571]
[1741513832323,0.18247361,85785.0,85784.0,0.10682571]
[1741513832534,0.18247361,85785.0,85784.0,0.07592571]
[1741513833135,0.10563361,85785.0,85784.0,0.07592571]
[1741513833837,0.18267361,85785.0,85784.0,0.07592571]
[1741513834547,0.10563361,85785.0,85784.0,0.07592571]
[1741513834731,0.18267361,85785.0,85784.0,0.07592571]
[1741513836046,0.10563361,85785.0,85784.0,0.07592571]
[1741513836248,0.18263361,85785.0,85784.0,0.07592571]
[1741513836545,0.10563361,85785.0,85784.0,0.07592571]
[1741513836745,0.18263361,85785.0,85784.0,0.07592571]
[1741513837342,0.18263361,85785.0,85784.0,0.07584571]
[1741513838340,0.18263361,85785.0,85784.0,0.07592571]
[1741513838642,0.10563361,85785.0,85784.0,0.07592571]
[1741513838841,0.23929748,85785.0,85784.0,0.07592571]
[1741513840242,0.23929748,85785.0,85784.0,0.0321]
[1741513841141,0.24643276,85785.0,85784.0,0.00585071]
[1741513841540,0.45633891,85785.0,85784.0,0.00585071]
[1741513841943,0.45633891,85785.0,85784.0,0.07580641]
[1741513842144,0.38638411,85785.0,85783.0,8e-05]
[1741513842339,0.1800357,85784.0,85783.0,8e-05]
[1741513842742,0.2109357,85784.0,85783.0,0.0700365]
[1741513842947,0.1332557,85784.0,85783.0,0.0700365]
[1741513843352,0.22250489,85784.0,85783.0,0.0699565]
[1741513844041,0.07482919,85784.0,85782.0,8e-05]
[1741513844243,0.07482919,85784.0,85765.0,0.26548]
[1741513844244,0.1484765,85783.0,85770.0,0.00124]
[1741513844451,0.0699654,85772.0,85771.0,0.0332]
[1741513844749,0.5096854,85772.0,85771.0,0.0332]
[1741513844954,0.52121459,85772.0,85771.0,0.1031663]
[1741513845249,0.52121459,85772.0,85771.0,0.0332]
[1741513845553,0.58531459,85772.0,85771.0,0.0332]
[1741513845751,0.58683459,85772.0,85771.0,0.0332]
[1741513846053,0.58683459,85772.0,85769.0,0.21819222]
[1741513846054,0.0699671,85770.0,85769.0,0.21819222]
[1741513846350,0.08149629,85770.0,85769.0,0.21815222]
[1741513846653,0.08149629,85770.0,85769.0,0.00874376]
[1741513846850,0.0699679,85769.0,85768.0,0.20944846]
[1741513847042,0.1332679,85769.0,85768.0,0.20944846]
[1741513847243,0.1332679,85769.0,85768.0,0.27949716]
[1741513847645,0.1332679,85769.0,85768.0,0.30969716]
[1741513847954,0.14479709,85769.0,85768.0,0.30969716]
[1741513851453,0.14479709,85769.0,85768.0,0.31862954]
[1741513852558,0.20150096,85769.0,85768.0,0.10922108]
[1741513853356,0.20150096,85769.0,85768.0,0.07902108]
[1741513856153,0.31940656,85769.0,85768.0,0.07902108]
[1741513856353,0.31940656,85769.0,85768.0,0.00905238]
[1741513857349,0.31940656,85769.0,85768.0,0.00893238]
[1741513857550,0.0699687,85768.0,85767.0,0.0700491]
[1741513857947,0.14329789,85768.0,85767.0,0.0700491]
[1741513858147,0.14329789,85768.0,85767.0,8e-05]
[1741513858353,0.14329789,85768.0,85767.0,0.00016]
[1741513859056,0.14329789,85768.0,85767.0,0.0701295]
[1741513859253,0.14329789,85768.0,85767.0,0.00016]
[1741513859850,0.14329789,85768.0,85767.0,0.0701295]
[1741513860452,0.22453789,85768.0,85767.0,0.1015295]
[1741513860760,0.22457789,85768.0,85767.0,0.14117372]
[1741513861163,0.22457789,85768.0,85767.0,0.11027372]
[1741513862263,0.15460919,85768.0,85763.0,0.36204]
[1741513862566,0.069972,85764.0,85763.0,0.4611728]
[1741513863264,0.08150119,85764.0,85763.0,0.4612528]
[1741513863463,0.14540119,85764.0,85763.0,0.4612528]
[1741513863663,0.14540119,85764.0,85763.0,0.4308528]
[1741513863863,0.14540119,85764.0,85763.0,0.4612528]
[1741513864070,0.14540119,85764.0,85763.0,0.4921528]
[1741513864463,0.22668119,85764.0,85763.0,0.4921528]
[1741513864663,0.07542919,85764.0,85763.0,0.50096878]
[1741513864965,0.18280912,85764.0,85763.0,0.50096878]
[1741513865367,0.18280912,85764.0,85763.0,0.50100878]
[1741513866069,0.24563074,85764.0,85763.0,0.50100878]
[1741513866572,0.32687074,85764.0,85763.0,0.50108878]
[1741513867265,0.25689874,85764.0,85763.0,0.50108878]
[1741513867460,0.32687074,85764.0,85763.0,0.50108878]
[1741513868469,0.25689874,85764.0,85763.0,0.50108878]
[1741513868869,0.18719081,85764.0,85763.0,0.50108878]
[1741513869974,0.11697881,85764.0,85763.0,0.50108878]
[1741513870179,0.11693881,85764.0,85763.0,0.50108878]
[1741513870377,0.11693881,85764.0,85763.0,0.50116878]
[1741513870677,0.18691081,85764.0,85763.0,0.50116878]
[1741513870870,0.18687081,85764.0,85763.0,0.50116878]
[1741513871071,0.10595081,85764.0,85763.0,0.50116878]
[1741513871371,0.18683081,85764.0,85763.0,0.50124878]
[1741513871875,0.18679081,85764.0,85763.0,0.50124878]
[1741513872079,0.10595081,85764.0,85763.0,0.50124878]
[1741513872270,0.18679081,85764.0,85763.0,0.50124878]
[1741513873172,0.24563074,85764.0,85763.0,0.50124878]
[1741513873366,0.25641874,85764.0,85763.0,0.50124878]
[1741513873576,0.17565874,85764.0,85763.0,0.50124878]
[1741513873968,0.17565874,85764.0,85763.0,0.76672878]
[1741513874276,0.17565874,85764.0,85763.0,0.76676878]
[1741513875869,0.17565874,85764.0,85763.0,0.76684878]
[1741513876367,0.24563074,85764.0,85763.0,0.76684878]
[1741513876873,0.33727108,85764.0,85763.0,0.76684878]
[1741513877268,0.34438208,85764.0,85763.0,0.76684878]
[1741513878976,0.34438208,85764.0,85763.0,0.73594878]
[1741513879283,0.42498208,85764.0,85763.0,0.70506878]
[1741513879683,0.42498208,85764.0,85763.0,0.34426878]
[1741513879985,0.42498208,85764.0,85763.0,0.43958878]
[1741513879986,0.19366181,85764.0,85763.0,0.43958878]
[1741513880281,0.18655081,85764.0,85763.0,0.43966878]
[1741513880472,0.21665081,85764.0,85763.0,0.43966878]
[1741513880673,0.13605081,85764.0,85763.0,0.47256878]
[1741513880867,0.13605081,85764.0,85763.0,0.43966878]
[1741513881072,0.21657081,85764.0,85763.0,0.43966878]
[1741513881285,0.21657081,85764.0,85763.0,0.47256878]
[1741513881473,0.21653081,85764.0,85763.0,0.47256878]
[1741513882184,0.13605081,85764.0,85763.0,0.47256878]
[1741513882378,0.21649081,85764.0,85763.0,0.47256878]
[1741513883077,0.19276161,85764.0,85763.0,0.47256878]
[1741513883278,0.27316161,85764.0,85763.0,0.47256878]
[1741513883475,0.27312161,85764.0,85763.0,0.47256878]
[1741513885078,0.28020885,85764.0,85763.0,0.47256878]
[1741513886178,0.28020885,85764.0,85763.0,0.07878878]
[1741513886787,0.28012885,85764.0,85763.0,0.07878878]
[1741513886987,0.27304161,85764.0,85763.0,0.07878878]
[1741513887179,0.27304161,85764.0,85763.0,0.00889598]
[1741513887585,0.19276161,85764.0,85763.0,0.00889598]
[1741513887775,0.27296161,85764.0,85763.0,8e-05]
[1741513888182,0.27296161,85764.0,85760.0,0.0699749]
[1741513888487,0.0699744,85761.0,85760.0,0.0699749]
[1741513889189,0.07435321,85761.0,85760.0,0.0699749]
[1741513889389,0.16735321,85761.0,85760.0,0.0700549]
[1741513890289,0.16735321,85761.0,85760.0,0.00899925]
[1741513890493,0.16735321,85761.0,85760.0,0.07897445]
[1741513893689,0.24723321,85761.0,85760.0,0.07897445]
[1741513894299,0.16735321,85761.0,85760.0,0.07897445]
[1741513894593,0.24723321,85761.0,85760.0,0.07897445]
[1741513895394,0.25420204,85761.0,85760.0,0.07897445]
[1741513895784,0.24715321,85761.0,85760.0,0.07897445]
[1741513895988,0.24715321,85761.0,85760.0,0.00899925]
[1741513896189,0.16735321,85761.0,85760.0,0.00899925]
[1741513896694,0.30391219,85761.0,85760.0,8e-05]
[1741513896886,0.22407219,85761.0,85760.0,8e-05]
[1741513897193,0.23126072,85761.0,85760.0,8e-05]
[1741513897394,0.31130072,85761.0,85760.0,8e-05]
[1741513897597,0.31202921,85761.0,85760.0,8e-05]
[1741513897790,0.31198921,85761.0,85760.0,8e-05]
[1741513899393,0.0699842,85749.0,85748.0,0.26548]
[1741513899587,0.0699875,85745.0,85744.0,0.1031882]
[1741513900382,0.14555484,85745.0,85744.0,0.1031882]
[1741513900587,0.0699883,85744.0,85743.0,0.57148846]
[1741513900787,0.0699883,85744.0,85743.0,0.57024846]
[1741513900992,0.1339883,85744.0,85743.0,0.57024846]
[1741513901290,0.14555564,85744.0,85743.0,0.57024846]
[1741513901894,0.14555564,85744.0,85743.0,0.4308291]
[1741513902082,0.14555564,85744.0,85743.0,0.36084]
[1741513902284,0.14555564,85744.0,85743.0,0.36092]
[1741513902789,0.13836711,85744.0,85743.0,0.36092]
[1741513905094,0.13836711,85744.0,85743.0,0.00012]
[1741513905495,0.06837881,85744.0,85743.0,0.0701091]
[1741513905694,0.03527881,85744.0,85743.0,0.0701091]
[1741513905998,0.00437881,85744.0,85743.0,0.3355891]
[1741513906296,0.00437881,85744.0,85743.0,0.3968891]
[1741513906795,0.00437881,85744.0,85743.0,0.3969291]
[1741513907195,0.00437881,85744.0,85743.0,0.3970091]
[1741513908405,0.00437881,85744.0,85743.0,0.3970491]
[1741513908802,0.00437881,85749.0,85743.0,0.32706]
[1741513909006,0.00437881,85749.0,85748.0,0.430785]
[1741513909206,0.00437881,85749.0,85748.0,0.511385]
[1741513909591,0.00437881,85749.0,85748.0,0.776865]
[1741513909795,0.00437881,85749.0,85748.0,0.869165]
[1741513910301,0.07436301,85749.0,85748.0,0.869165]
[1741513910609,0.07436301,85749.0,85748.0,0.508365]
[1741513910791,0.10686301,85749.0,85748.0,0.396165]
[1741513911096,0.10686301,85749.0,85748.0,0.365765]
[1741513912201,0.10686301,85749.0,85748.0,0.365845]
[1741513914405,0.10686301,85749.0,85748.0,0.26556]
[1741513914801,0.10686301,85749.0,85748.0,8e-05]
[1741513915313,0.10686301,85749.0,85742.0,0.0699898]
[1741513915314,0.1049831,85745.0,85744.0,0.069988]
[1741513915513,0.1854231,85745.0,85744.0,0.069988]
[1741513915706,0.18980191,85745.0,85744.0,0.069988]
[1741513916099,0.18980191,85745.0,85741.0,0.0699904]
[1741513916100,0.1049868,85742.0,85741.0,0.0699904]
[1741513916611,0.10936561,85742.0,85741.0,0.0699904]
[1741513917412,0.03937401,85742.0,85741.0,0.1316904]
[1741513917603,0.00437881,85742.0,85741.0,0.1316904]
[1741513917809,0.07436871,85742.0,85741.0,0.1316904]
[1741513918312,0.00437881,85742.0,85741.0,0.1316904]
[1741513918614,0.07436871,85742.0,85741.0,0.1317304]
[1741513918800,0.10696871,85742.0,85741.0,0.1317304]
[1741513919405,0.10696871,85742.0,85741.0,0.4926104]
[1741513921717,0.03697881,85742.0,85741.0,0.4926104]
[1741513922109,0.11789881,85742.0,85741.0,0.4926104]
[1741513922609,0.18788871,85742.0,85741.0,0.4926104]
[1741513923210,0.21948871,85742.0,85741.0,0.4926104]
[1741513923609,0.25078871,85742.0,85741.0,0.4626104]
[1741513924612,0.21948871,85742.0,85741.0,0.4935104]
[1741513924815,0.14949881,85742.0,85741.0,0.4935104]
[1741513925217,0.21948871,85742.0,85741.0,0.4935104]
[1741513926119,0.14949881,85742.0,85741.0,0.4935104]
[1741513926327,0.14512,85742.0,85741.0,0.4935104]
[1741513926619,0.2151099,85742.0,85741.0,0.4935104]
[1741513927012,0.14512,85742.0,85741.0,0.4935104]
[1741513927324,0.2151099,85742.0,85741.0,0.4935104]
[1741513928612,0.2151099,85742.0,85741.0,0.4626104]
[1741513928817,0.21928689,85742.0,85741.0,0.4626104]
[1741513929019,0.35898267,85742.0,85741.0,0.4626104]
[1741513929810,0.27806267,85742.0,85741.0,0.4626104]
[1741513930011,0.35914267,85742.0,85741.0,0.4309104]
[1741513932018,0.35914267,85742.0,85741.0,0.00012]
[1741513932210,0.35914267,85742.0,85729.0,0.21064846]
[1741513932211,0.35914267,85742.0,85738.0,0.0699926]
[1741513932520,0.0699924,85740.0,85739.0,0.0699921]
[1741513932922,0.1313924,85740.0,85739.0,0.0699921]
[1741513933114,0.13556939,85740.0,85739.0,0.0699921]
[1741513933414,0.13556939,85740.0,85739.0,8e-05]
[1741513934315,0.0699948,85736.0,85735.0,0.0699952]
[1741513934513,0.1509548,85736.0,85735.0,0.0699952]
[1741513934715,0.0699965,85734.0,85733.0,0.335477]
[1741513935019,0.0699965,85734.0,85733.0,0.26548]
[1741513935319,0.0699965,85734.0,85733.0,0.3354773]
[1741513935520,0.14007349,85734.0,85733.0,0.3354773]
[1741513936317,0.15155935,85734.0,85733.0,8e-05]
[1741513936722,0.14007349,85734.0,85733.0,8e-05]
[1741513936923,0.14007349,85734.0,85733.0,0.0700773]
[1741513937221,0.14007349,85734.0,85733.0,0.0699973]
[1741513938223,0.14007349,85734.0,85733.0,0.0700773]
[1741513938625,0.19680926,85734.0,85733.0,0.0700773]
[1741513939924,0.19680926,85734.0,85733.0,0.1017773]
[1741513940430,0.19680926,85734.0,85733.0,0.0700773]
[1741513940723,0.19680926,85734.0,85733.0,0.1004773]
[1741513941219,0.12681276,85734.0,85733.0,0.0700773]
[1741513941417,0.27772926,85734.0,85733.0,0.1313773]
[1741513941728,0.20773276,85734.0,85733.0,0.1313773]
[1741513942121,0.09371276,85734.0,85733.0,0.1313773]
[1741513942521,0.03697699,85734.0,85733.0,0.1313773]
[1741513942826,0.03697699,85734.0,85733.0,0.1314173]
[1741513943318,0.0328,85734.0,85733.0,0.1314973]